bitfinex/quotes_ETHUSD_20250328
["timestamp","ask_amount","ask_price","bid_price","bid_amount"]
[1743186301158,18.47434588,1877.5,1877.4,5.144]
[1743186301856,14.65284483,1877.5,1877.4,5.144]
[1743186302882,14.65284483,1877.5,1877.4,5.26570408]
[1743186303866,9.32660483,1877.5,1877.4,5.26570408]
[1743186304077,8.93432992,1877.5,1877.4,6.02060408]
[1743186305005,14.656279,1877.5,1877.4,0.12170408]
[1743186305182,14.656279,1877.5,1877.4,5.144]
[1743186305381,14.656279,1877.5,1877.4,5.2655775]
[1743186305573,15.476279,1877.5,1877.4,5.2655775]
[1743186306210,19.29778005,1877.5,1877.4,5.2655775]
[1743186306411,18.47778005,1877.5,1877.4,5.2655775]
[1743186306788,14.656279,1877.5,1877.4,5.2655775]
[1743186307786,14.26055992,1877.5,1877.4,5.2655775]
[1743186308977,14.66063254,1877.5,1877.4,5.2655775]
[1743186309693,14.26055992,1877.5,1877.4,5.2655775]
[1743186311420,8.93432992,1877.5,1877.4,5.2655775]
[1743186311875,8.93432992,1877.5,1877.4,6.0289775]
[1743186312474,5.93432992,1877.5,1877.4,11.3554875]
[1743186312803,5.93432992,1877.5,1877.4,13.02371525]
[1743186314219,5.93432992,1877.5,1877.4,11.3564875]
[1743186315423,5.93432992,1877.5,1877.4,25.8564875]
[1743186317852,5.93432992,1877.5,1877.4,11.3564875]
[1743186318711,5.93432992,1877.5,1877.4,6.0299775]
[1743186318943,11.26055992,1877.5,1877.4,0.1215775]
[1743186319146,12.08865992,1877.5,1877.4,5.2655775]
[1743186319945,11.26055992,1877.5,1877.4,5.2655775]
[1743186320915,18.08206097,1877.5,1877.4,5.2655775]
[1743186322742,14.26055992,1877.5,1877.4,5.2655775]
[1743186322911,14.66559507,1877.5,1877.4,5.2655775]
[1743186323738,8.93432992,1877.5,1877.4,0.1215775]
[1743186324013,8.93432992,1877.5,1877.4,5.2655775]
[1743186324916,14.26055992,1877.5,1877.4,5.2655775]
[1743186325451,8.93432992,1877.5,1877.4,5.2655775]
[1743186325647,5.93432992,1877.5,1877.4,12.56734287]
[1743186325834,5.93432992,1877.5,1877.4,12.51407725]
[1743186326033,5.93432992,1877.5,1877.4,6.0517775]
[1743186326346,5.93432992,1877.5,1877.4,11.3782875]
[1743186326647,5.93432992,1877.5,1877.4,6.0517775]
[1743186327147,5.93432992,1877.5,1877.4,5.2655775]
[1743186328853,5.93432992,1877.5,1877.4,11.3807875]
[1743186329026,5.93432992,1877.5,1877.4,11.38328911]
[1743186329939,5.93432992,1877.5,1877.4,6.05677911]
[1743186330142,5.93432992,1877.5,1877.4,11.38328911]
[1743186330341,5.93432992,1877.5,1877.4,6.05677911]
[1743186330642,5.93432992,1877.5,1877.4,5.26807911]
[1743186331947,11.26055992,1877.5,1877.4,5.26807911]
[1743186332661,11.26055992,1877.5,1877.4,0.12407911]
[1743186332864,11.26055992,1877.5,1877.4,5.144]
[1743186333079,11.26055992,1877.5,1877.4,5.26807911]
[1743186333249,5.93432992,1877.5,1877.4,5.26807911]
[1743186336683,5.93432992,1877.5,1877.4,10.59458911]
[1743186337189,5.93432992,1877.5,1877.4,12.97331802]
[1743186337542,9.14606105,1878.1,1877.9,0.7866]
[1743186337543,5.93432992,1878.1,1877.9,0.7866]
[1743186337743,11.25885992,1878.1,1878.0,5.144]
[1743186337989,14.25885992,1878.1,1878.0,5.26854009]
[1743186339625,8.93432992,1878.1,1878.0,5.26854009]
[1743186339809,14.25885992,1878.1,1878.0,5.26854009]
[1743186341568,19.27035429,1878.1,1878.0,5.26854009]
[1743186342376,19.27035429,1878.1,1878.0,0.12454009]
[1743186342701,5.32481,1878.0,1877.9,5.143]
[1743186342886,9.14631105,1878.0,1877.9,5.26754009]
[1743186343084,15.08064097,1878.0,1877.9,5.26754009]
[1743186343778,11.25913992,1878.0,1877.9,5.26754009]
[1743186345286,5.93432992,1878.0,1877.9,5.26754009]
[1743186345486,11.25913992,1878.0,1877.9,5.26754009]
[1743186345805,5.93432992,1878.0,1877.9,5.26754009]
[1743186346005,5.93432992,1878.0,1877.9,6.06764009]
[1743186347110,5.93432992,1878.0,1877.9,11.39273009]
[1743186347491,5.93432992,1878.0,1877.9,6.06764009]
[1743186347986,5.93432992,1878.0,1877.9,11.39273009]
[1743186348692,5.93432992,1878.0,1877.9,13.0645241]
[1743186350194,5.93432992,1878.0,1877.9,0.12454009]
[1743186350540,5.93432992,1878.0,1877.9,5.143]
[1743186350697,5.93432992,1878.0,1877.9,11.34266004]
[1743186354643,5.93432992,1878.0,1877.9,5.26077004]
[1743186354817,15.08064097,1878.0,1877.9,0.11777004]
[1743186355151,15.08064097,1878.0,1877.9,5.142]
[1743186355352,5.93432992,1878.0,1877.9,5.25958029]
[1743186355554,11.25913992,1878.0,1877.9,5.25958029]
[1743186356157,15.08064097,1878.0,1877.9,5.25958029]
[1743186356541,18.08064097,1878.0,1877.9,5.25958029]
[1743186356837,18.08064097,1878.0,1877.9,0.11758029]
[1743186357048,23.40565097,1878.0,1877.8,5.142]
[1743186357246,5.32509,1877.9,1877.8,5.142]
[1743186358445,5.32509,1877.9,1877.6,6.09412]
[1743186358757,5.32509,1877.9,1877.7,5.142]
[1743186358963,8.32509,1877.9,1877.7,5.142]
[1743186359375,13.65034,1877.9,1877.7,5.142]
[1743186360282,6.82150105,1877.9,1877.5,0.814]
[1743186360440,9.14760105,1877.6,1877.3,0.814]
[1743186360641,3.0,1877.5,1877.4,5.142]
[1743186360883,8.93432992,1877.5,1877.4,5.142]
[1743186361441,14.26068992,1877.5,1877.4,5.142]
[1743186365388,5.93432992,1877.5,1877.4,11.79071]
[1743186365958,5.93432992,1877.5,1877.4,26.29071]
[1743186366384,5.93432992,1877.5,1877.4,21.14871]
[1743186366684,5.93432992,1877.5,1877.4,25.77751]
[1743186369301,5.93432992,1877.5,1877.4,25.89002543]
[1743186372598,5.93432992,1877.8,1877.6,5.32576]
[1743186372799,5.93432992,1877.8,1877.6,10.65155]
[1743186373124,5.93432992,1877.8,1877.7,5.43722652]
[1743186373302,5.93432992,1877.8,1877.7,7.32012517]
[1743186375513,5.93432992,1877.8,1877.7,0.11156652]
[1743186375690,5.93432992,1877.8,1877.7,5.142]
[1743186375890,5.93432992,1877.8,1877.7,5.25344]
[1743186376318,5.93432992,1877.8,1877.7,5.25044]
[1743186377010,5.93432992,1877.8,1877.7,10.5761]
[1743186377217,5.93432992,1877.8,1877.7,12.247179]
[1743186377413,5.93432992,1877.8,1877.7,10.5761]
[1743186379082,5.93432992,1877.8,1877.7,5.25044]
[1743186379592,12.07760992,1877.8,1877.7,5.25344]
[1743186380409,6.75222992,1877.8,1877.7,5.25344]
[1743186380815,5.93432992,1877.8,1877.7,5.25344]
[1743186383300,5.93432992,1877.8,1877.7,10.5791]
[1743186383500,5.93432992,1877.8,1877.7,5.25344]
[1743186383702,5.93432992,1877.8,1877.7,10.5791]
[1743186384220,5.93432992,1878.1,1877.9,5.32482]
[1743186384427,5.93432992,1878.1,1877.9,10.64977]
[1743186384728,8.93432992,1878.1,1878.0,5.43650304]
[1743186384904,5.93432992,1878.1,1878.0,6.23710304]
[1743186385224,5.32345,1878.5,1878.2,5.32413]
[1743186385225,5.93432992,1878.5,1878.2,5.32413]
[1743186385424,5.93432992,1878.5,1878.3,5.142]
[1743186385635,5.93432992,1878.5,1878.3,5.25318697]
[1743186386025,11.25773992,1878.5,1878.3,5.25318697]
[1743186390040,5.93432992,1878.5,1878.3,5.25318697]
[1743186390611,11.25774992,1878.5,1878.3,5.25318697]
[1743186393054,5.93432992,1878.5,1878.3,11.40093697]
[1743186393413,5.93432992,1878.5,1878.3,16.72476697]
[1743186393607,5.93432992,1878.5,1878.3,11.40081697]
[1743186394250,5.93432992,1878.5,1878.3,18.09627532]
[1743186394448,5.93432992,1878.5,1878.4,5.32367]
[1743186394762,3.0,1878.8,1878.4,0.10511556]
[1743186394914,3.0,1878.8,1878.6,6.14678]
[1743186395255,8.93432992,1878.8,1878.7,5.24511556]
[1743186395411,5.93432992,1878.8,1878.7,5.24511556]
[1743186395835,11.25686992,1878.8,1878.7,5.24511556]
[1743186396361,18.83517097,1878.8,1878.7,0.10511556]
[1743186398459,5.32282,1878.7,1878.6,5.14]
[1743186398762,12.14432105,1878.7,1878.6,5.24423045]
[1743186399061,18.07865097,1878.7,1878.6,5.24423045]
[1743186401255,14.25714992,1878.7,1878.6,5.24423045]
[1743186404567,18.07865097,1878.7,1878.6,5.24423045]
[1743186405430,14.25714992,1878.7,1878.6,5.24423045]
[1743186406750,18.07865097,1878.7,1878.6,5.24423045]
[1743186407949,14.25714992,1878.7,1878.6,5.24423045]
[1743186410550,5.93432992,1878.7,1878.6,11.9150635]
[1743186412552,5.93432992,1878.7,1878.6,26.4150635]
[1743186412952,5.93432992,1879.0,1878.9,6.08716]
[1743186413340,5.93432992,1879.0,1878.9,6.18709244]
[1743186413540,5.93432992,1879.0,1878.9,7.33804368]
[1743186418066,5.93432992,1879.0,1878.9,7.23811124]
[1743186422377,5.93432992,1879.0,1878.9,21.73811124]
[1743186427279,5.93432992,1879.0,1878.9,22.79068103]
[1743186428182,5.93432992,1879.3,1879.0,5.32183]
[1743186428484,5.93432992,1879.3,1879.1,5.137]
[1743186428966,5.93432992,1879.3,1879.2,5.32141]
[1743186429173,5.93432992,1879.3,1879.2,6.13701]
[1743186429976,5.93432992,1879.3,1879.2,6.19021718]
[1743186430198,9.75583097,1879.8,1879.5,5.32046]
[1743186430506,5.93432992,1879.8,1879.6,11.22467]
[1743186430885,5.93432992,1879.8,1879.6,10.45717]
[1743186431274,5.93432992,1879.8,1879.6,5.137]
[1743186431474,11.25404992,1879.8,1879.6,5.137]
[1743186431676,12.05374992,1879.8,1879.6,5.137]
[1743186431875,6.73402992,1879.8,1879.6,5.137]
[1743186432700,12.05374992,1879.8,1879.6,5.137]
[1743186432980,6.73402992,1879.8,1879.6,5.137]
[1743186433817,12.05388992,1879.8,1879.6,5.137]
[1743186434013,3.82150105,1879.7,1879.6,5.136]
[1743186434205,12.93699105,1879.7,1879.6,5.136]
[1743186439817,12.93699105,1879.7,1879.3,19.82101]
[1743186439984,18.87132097,1879.7,1879.6,5.135]
[1743186441115,15.04981992,1879.7,1879.6,5.135]
[1743186441691,18.87132097,1879.7,1879.6,5.135]
[1743186443925,15.04981992,1879.7,1879.6,5.135]
[1743186444125,14.25431992,1879.7,1879.6,5.135]
[1743186447420,19.57459992,1879.7,1879.3,5.32104]
[1743186447607,5.3203,1879.6,1879.4,5.134]
[1743186449021,5.3203,1879.6,1879.0,0.7567]
[1743186449022,5.32127,1879.3,1879.0,0.7567]
[1743186449322,5.93432992,1879.3,1879.1,10.45567]
[1743186449626,5.93432992,1879.3,1879.1,5.134]
[1743186449827,15.07697097,1879.3,1879.0,0.7567]
[1743186450030,15.07697097,1879.3,1879.2,5.134]
[1743186450228,15.07697097,1879.3,1879.0,0.7567]
[1743186450229,5.32141,1879.2,1879.0,0.7567]
[1743186450407,9.75583097,1879.1,1878.7,0.7704]
[1743186450607,8.93432992,1879.1,1879.0,5.134]
[1743186450808,18.07752097,1879.1,1879.0,5.134]
[1743186451800,18.47580593,1879.1,1879.0,5.134]
[1743186454198,5.32243,1878.9,1878.5,20.59377]
[1743186454399,11.25675992,1878.9,1878.6,10.4581]
[1743186454597,5.93432992,1878.9,1878.7,5.32281]
[1743186454836,8.93432992,1878.9,1878.8,0.7948]
[1743186455016,5.93432992,1878.9,1878.8,6.11734]
[1743186455203,5.93432992,1878.9,1878.8,7.261345]
[1743186457313,5.93432992,1878.9,1878.8,20.61734]
[1743186462214,5.93432992,1878.9,1878.8,20.65554]
[1743186463147,5.93432992,1878.9,1878.8,5.134]
[1743186464338,11.25673992,1878.9,1878.8,5.134]
[1743186465423,15.07824097,1878.9,1878.8,5.134]
[1743186465840,11.25673992,1878.9,1878.8,5.134]
[1743186468918,5.93432992,1878.9,1878.8,5.134]
[1743186469124,11.25658992,1878.9,1878.8,5.134]
[1743186469857,16.57906992,1878.9,1878.5,5.32335]
[1743186470058,16.57906992,1878.9,1878.6,5.134]
[1743186470358,16.57895992,1878.9,1878.7,14.5]
[1743186470555,4.58700105,1878.8,1878.3,5.32387]
[1743186470766,9.14455105,1878.7,1878.6,5.134]
[1743186470953,5.32305,1878.7,1878.6,5.134]
[1743186472054,5.32305,1878.7,1878.3,19.82382]
[1743186472247,5.32305,1878.7,1878.4,5.134]
[1743186472558,5.32321,1878.6,1878.4,5.134]
[1743186475591,5.32321,1878.6,1878.5,14.5]
[1743186476790,5.32321,1878.6,1878.4,5.134]
[1743186476791,4.22841789,1878.6,1878.1,6.14996]
[1743186476948,5.32402,1878.3,1877.9,11.40192]
[1743186477148,5.32402,1878.3,1878.0,19.634]
[1743186477149,9.14552105,1878.3,1878.0,19.634]
[1743186477457,5.32402,1878.3,1878.0,27.14952045]
[1743186480579,10.64813,1878.3,1878.0,27.14952045]
[1743186480774,10.64813,1878.3,1878.0,24.95881]
[1743186480978,11.25834992,1878.3,1878.0,24.95881]
[1743186481785,11.25834992,1878.3,1878.0,19.634]
[1743186481962,16.58248992,1878.3,1878.0,19.634]
[1743186482275,5.32428,1878.2,1878.0,14.5]
[1743186482481,5.32428,1878.2,1878.1,5.134]
[1743186482984,5.32454,1878.1,1877.9,0.7519]
[1743186483279,14.47018105,1878.2,1878.0,5.135]
[1743186483473,10.64868,1878.2,1878.0,5.135]
[1743186483672,13.64868,1878.2,1878.1,14.5]
[1743186485487,5.93432992,1878.3,1878.1,14.5]
[1743186485647,5.93432992,1878.3,1878.2,5.32424]
[1743186485986,5.93432992,1878.3,1878.2,6.14844]
[1743186486172,5.93432992,1878.3,1878.2,6.20167722]
[1743186486368,5.93432992,1878.3,1878.2,20.64844]
[1743186486682,5.93432992,1878.3,1878.2,23.442074]
[1743186487401,15.88399097,1878.3,1878.2,5.135]
[1743186487684,18.88399097,1878.3,1878.2,5.135]
[1743186487858,14.25828992,1878.3,1878.2,5.135]
[1743186488801,18.07979097,1878.3,1878.2,5.135]
[1743186489704,5.32432,1878.2,1877.9,19.82503]
[1743186489902,5.32432,1878.2,1878.0,5.135]
[1743186490400,5.32453,1878.1,1877.9,14.5]
[1743186490593,9.14578105,1878.2,1878.0,5.135]
[1743186490594,15.27599105,1878.2,1878.0,5.135]
[1743186490793,6.13008,1878.2,1878.0,5.135]
[1743186491308,15.27604105,1878.2,1878.0,5.135]
[1743186491508,6.13008,1878.2,1878.0,5.135]
[1743186494010,11.45451,1878.2,1878.1,14.5]
[1743186494208,6.13008,1878.2,1878.1,14.5]
[1743186494506,6.13008,1878.2,1878.0,5.135]
[1743186494711,11.4545,1878.2,1878.0,5.135]
[1743186494906,5.32453,1878.1,1878.0,5.135]
[1743186495111,5.32453,1878.1,1878.0,19.635]
[1743186496010,3.82150105,1878.1,1877.6,6.37420725]
[1743186496309,5.93432992,1878.0,1877.8,5.32513]
[1743186496513,5.93432992,1878.0,1877.8,10.65028]
[1743186496709,5.93432992,1878.0,1877.9,5.32509]
[1743186497088,8.93432992,1878.3,1878.0,5.32471]
[1743186497291,5.93432992,1878.3,1878.1,10.4595]
[1743186497601,5.93432992,1878.3,1878.2,6.08544]
[1743186498683,5.93432992,1878.8,1878.7,5.32282]
[1743186498883,5.93432992,1878.8,1878.7,10.45782]
[1743186499383,9.75583097,1878.8,1878.7,5.135]
[1743186500835,15.07837097,1878.8,1878.7,5.135]
[1743186502629,5.32284,1878.7,1878.3,0.7686]
[1743186502843,15.07867097,1878.7,1878.6,5.134]
[1743186504643,20.40168097,1878.7,1878.3,6.09234]
[1743186504846,15.07867097,1878.7,1878.6,5.134]
[1743186505022,5.93432992,1878.7,1878.6,5.134]
[1743186505360,15.07865097,1878.7,1878.6,5.134]
[1743186507029,9.75583097,1878.7,1878.6,5.134]
[1743186511264,15.07865097,1878.7,1878.6,5.134]
[1743186511441,9.75583097,1878.7,1878.6,5.134]
[1743186513467,5.93432992,1878.7,1878.6,5.134]
[1743186514127,5.93432992,1878.7,1878.6,12.308631]
[1743186518502,5.93432992,1878.7,1878.6,5.134]
[1743186518711,9.75583097,1878.7,1878.4,6.13984]
[1743186518861,5.93432992,1878.7,1878.5,5.133]
[1743186519205,15.07872097,1878.7,1878.5,5.133]
[1743186519501,5.93432992,1878.7,1878.5,10.45637]
[1743186521301,5.93432992,1878.7,1878.5,10.45639]
[1743186521463,5.93432992,1878.7,1878.5,15.77966]
[1743186521662,5.93432992,1878.7,1878.5,10.45627]
[1743186524300,5.93432992,1878.7,1878.5,12.034241]
[1743186524470,6.75412992,1879.2,1878.9,5.32213]
[1743186524799,3.0,1879.1,1879.0,10.45397]
[1743186524994,9.96217105,1879.4,1879.0,10.45397]
[1743186525292,6.14067,1879.4,1879.1,5.3216]
[1743186525801,3.8198,1879.4,1879.1,5.32157]
[1743186526001,3.8198,1879.4,1879.1,5.32154]
[1743186526002,12.14238105,1879.4,1879.1,5.32154]
[1743186526676,12.54063168,1879.4,1879.1,5.32154]
[1743186527300,3.39825063,1879.4,1879.1,5.32154]
[1743186527672,3.0,1879.4,1879.2,5.32139]
[1743186527878,3.0,1879.4,1879.3,5.32113]
[1743186528272,3.0,1879.4,1879.2,5.32139]
[1743186528504,3.0,1879.4,1879.2,5.32125]
[1743186529007,5.93432992,1879.5,1879.4,5.32084]
[1743186529180,5.93432992,1879.5,1879.4,11.595967]
[1743186529580,5.93432992,1879.5,1879.4,5.132]
[1743186530186,5.93432992,1879.5,1879.4,10.45284]
[1743186530387,5.93432992,1879.5,1879.4,5.132]
[1743186530916,5.93432992,1879.5,1879.2,10.64259]
[1743186530917,15.07639097,1879.5,1879.2,5.32122]
[1743186531073,10.54903097,1879.5,1879.4,5.131]
[1743186537215,6.72752992,1879.5,1879.4,5.131]
[1743186537423,5.93432992,1879.5,1879.4,5.131]
[1743186540933,15.85319097,1879.5,1879.4,5.131]
[1743186541710,18.85319097,1879.5,1879.4,5.131]
[1743186542314,13.53263097,1879.5,1879.4,5.131]
[1743186542946,18.85319097,1879.5,1879.4,5.131]
[1743186546952,5.32087,1879.4,1879.1,6.11099]
[1743186547246,9.14237105,1879.4,1879.2,5.13]
[1743186549054,24.17393097,1879.5,1879.2,5.13]
[1743186550057,9.14242105,1879.4,1879.2,5.13]
[1743186550555,5.32092,1879.4,1879.2,5.13]
[1743186551473,11.25524992,1879.4,1879.2,5.13]
[1743186551856,5.93432992,1879.4,1879.2,5.13]
[1743186552266,11.25519992,1879.4,1879.2,5.13]
[1743186554871,5.93432992,1879.4,1879.2,5.13]
[1743186555777,11.25518992,1879.4,1879.2,5.13]
[1743186556785,5.93432992,1879.4,1879.2,5.13]
[1743186557073,5.93432992,1879.4,1879.3,6.11413]
[1743186557374,5.93432992,1879.4,1879.3,20.61413]
[1743186557575,5.93432992,1879.7,1879.4,5.32063]
[1743186558046,5.93432992,1879.7,1879.5,5.32055]
[1743186558242,5.93432992,1879.7,1879.6,5.129]
[1743186559072,9.75583097,1879.7,1879.6,5.129]
[1743186559277,15.07582097,1879.7,1879.6,5.129]
[1743186559880,9.75583097,1879.7,1879.6,5.129]
[1743186563681,15.07582097,1879.7,1879.6,5.129]
[1743186566103,18.07582097,1879.7,1879.6,5.129]
[1743186566605,6.09789,1879.6,1879.3,0.793]
[1743186566810,3.82150105,1879.5,1879.4,5.128]
[1743186568809,9.14199105,1879.6,1879.4,5.128]
[1743186572898,14.46246105,1879.6,1879.4,5.128]
[1743186573096,14.46246105,1879.6,1879.4,19.628]
[1743186573395,14.46245105,1879.6,1879.4,19.628]
[1743186574098,5.32068,1879.5,1879.2,0.7679]
[1743186574392,3.82150105,1879.4,1879.3,5.128]
[1743186574605,9.14234105,1879.4,1879.3,5.128]
[1743186575213,3.82150105,1879.4,1879.3,5.128]
[1743186576681,9.14234105,1879.4,1879.3,5.128]
[1743186577517,0.8263,1879.3,1878.8,0.8019]
[1743186577821,9.14388105,1878.9,1878.7,14.5]
[1743186577962,9.14388105,1878.9,1878.8,5.127]
[1743186578793,5.32313,1878.6,1878.3,5.32386]
[1743186578995,15.07896097,1878.6,1878.4,5.127]
[1743186579903,9.14489105,1878.5,1878.4,5.127]
[1743186580129,10.64762,1878.4,1878.2,14.5]
[1743186580332,3.82150105,1878.3,1878.2,14.5]
[1743186580540,3.82150105,1878.3,1878.2,19.628]
[1743186581103,9.14546105,1878.3,1878.2,5.128]
[1743186583554,15.07979097,1878.3,1878.2,5.128]
[1743186585236,15.07979097,1878.3,1878.2,19.628]
[1743186585532,15.07979097,1878.3,1878.2,14.5]
[1743186585733,5.32499,1878.0,1877.6,6.14713]
[1743186585947,15.08082097,1878.0,1877.7,1.05396316]
[1743186586151,15.08082097,1878.0,1877.8,19.629]
[1743186586517,15.08082097,1878.0,1877.9,5.129]
[1743186587332,18.08082097,1878.0,1877.9,5.129]
[1743186588850,5.32538,1877.8,1877.7,14.5]
[1743186589019,9.14688105,1877.8,1877.7,5.129]
[1743186589926,9.14664105,1877.9,1877.7,5.129]
[1743186590973,5.32566,1877.7,1877.3,5.3267]
[1743186591141,3.82150105,1877.6,1877.5,5.13]
[1743186591340,9.14716105,1877.7,1877.5,5.13]
[1743186592288,9.54052384,1877.7,1877.6,5.13]
[1743186592469,15.47485376,1877.7,1877.6,5.13]
[1743186593074,15.08149097,1877.7,1877.6,5.23252641]
[1743186596669,15.48038026,1877.7,1877.6,5.23252641]
[1743186599264,5.93432992,1877.7,1877.6,11.84451905]
[1743186599608,5.93432992,1877.7,1877.6,26.34451905]
[1743186599959,5.93432992,1877.7,1877.6,21.01857905]
[1743186600159,5.93432992,1877.7,1877.6,5.23252641]
[1743186600355,9.75583097,1877.7,1877.6,5.23252641]
[1743186600787,9.75583097,1877.7,1877.6,0.10252641]
[1743186600973,15.08149097,1877.7,1877.6,5.23252641]
[1743186601170,5.93432992,1877.7,1877.6,5.23252641]
[1743186601788,5.93432992,1877.7,1877.6,10.55846641]
[1743186602499,5.93432992,1877.7,1877.6,5.23252641]
[1743186602998,5.93432992,1877.7,1877.6,10.55846641]
[1743186603503,5.93432992,1877.7,1877.6,13.67772705]
[1743186604021,11.25865992,1878.2,1877.9,6.10879]
[1743186604310,3.0,1878.1,1878.0,5.13]
[1743186604476,8.32453,1878.1,1878.0,5.13]
[1743186604682,12.14603105,1878.1,1878.0,5.13]
[1743186605115,6.82150105,1878.1,1878.0,5.13]
[1743186606426,12.14603105,1878.1,1878.0,5.13]
[1743186606589,8.32566,1877.7,1877.6,0.10252641]
[1743186606787,18.08149097,1877.7,1877.6,0.10252641]
[1743186607481,5.93432992,1877.7,1877.6,6.20866641]
[1743186607673,5.93432992,1877.7,1877.6,7.87514405]
[1743186608479,15.08011097,1878.2,1877.8,5.32513]
[1743186608790,20.40454097,1878.2,1877.9,6.452313]
[1743186608994,5.32454,1878.1,1877.9,5.9198]
[1743186609183,9.14604105,1878.1,1877.9,5.9198]
[1743186609582,9.14604105,1878.1,1877.9,5.13]
[1743186610118,3.82150105,1878.1,1877.9,5.13]
[1743186610296,9.75583097,1878.2,1877.9,10.45499]
[1743186610493,11.25759992,1878.6,1878.2,5.32407]
[1743186610823,3.82150105,1878.5,1878.3,5.13]
[1743186611178,9.14508105,1878.5,1878.3,5.13]
[1743186611815,3.82150105,1878.4,1878.3,5.13]
[1743186612414,9.14517105,1878.4,1878.3,5.13]
[1743186613382,3.82150105,1878.4,1878.3,5.13]
[1743186613694,15.07899097,1878.6,1878.3,5.13]
[1743186614027,11.25748992,1878.6,1878.4,0.832]
[1743186614181,15.07899097,1878.6,1878.4,0.832]
[1743186614385,11.25748992,1878.6,1878.4,0.832]
[1743186616921,9.14489105,1878.5,1878.3,5.13]
[1743186617223,11.25744992,1878.6,1878.3,11.582505]
[1743186617428,5.93432992,1878.6,1878.3,11.582425]
[1743186617804,5.93432992,1878.6,1878.4,0.1069496]
[1743186618228,5.93432992,1878.6,1878.4,5.4306196]
[1743186618412,5.93432992,1878.6,1878.4,0.1069496]
[1743186619035,5.93432992,1878.6,1878.4,5.4305996]
[1743186619337,11.25757992,1878.6,1878.4,0.1069496]
[1743186620440,5.93432992,1878.6,1878.4,0.1069496]
[1743186621665,9.91119105,1878.5,1878.4,0.1069496]
[1743186623747,5.32339,1878.5,1878.4,0.1069496]
[1743186624955,9.14489105,1878.5,1878.4,0.1069496]
[1743186626453,12.92399105,1878.5,1878.4,0.1069496]
[1743186626832,8.32396,1878.3,1878.2,5.128]
[1743186627031,12.14546105,1878.3,1878.2,5.23197749]
[1743186627237,12.96006105,1878.3,1878.2,5.23197749]
[1743186627661,18.89439097,1878.3,1878.2,5.23197749]
[1743186628260,18.89439097,1878.3,1878.2,0.10397749]
[1743186628638,5.32435,1878.2,1878.0,5.128]
[1743186628843,5.93432992,1878.1,1878.0,5.128]
[1743186630265,5.93432992,1878.1,1878.0,5.6408]
[1743186631158,5.93432992,1878.1,1878.0,10.96561]
[1743186631372,5.93432992,1878.1,1878.0,11.74311]
[1743186631738,5.93432992,1878.1,1878.0,6.4183]
[1743186631943,5.93432992,1878.1,1878.0,5.9055]
[1743186632356,5.93432992,1878.1,1878.0,20.4055]
[1743186634355,5.93432992,1878.1,1878.0,20.51225958]
[1743186635347,5.93432992,1878.1,1878.0,21.5815796]
[1743186635748,5.93432992,1878.1,1878.0,26.9063896]
[1743186636047,5.93432992,1878.1,1878.0,24.80470656]
[1743186637469,5.93432992,1878.1,1878.0,10.30470656]
[1743186637671,5.93432992,1878.1,1878.0,7.0815796]
[1743186638168,9.75583097,1878.1,1878.0,6.3040796]
[1743186638467,9.75583097,1878.1,1878.0,5.23475958]
[1743186638670,5.93432992,1878.1,1878.0,5.23475958]
[1743186643590,5.93432992,1878.4,1878.1,0.8148]
[1743186643881,5.93432992,1878.4,1878.2,0.10739195]
[1743186644183,5.93432992,1878.4,1878.1,7.27651296]
[1743186644360,5.93432992,1878.4,1878.2,0.10739195]
[1743186644557,5.93432992,1878.4,1878.2,5.32413]
[1743186644763,5.93432992,1878.4,1878.3,5.43116223]
[1743186644946,5.93432992,1878.4,1878.3,7.32149145]
[1743186646981,5.93432992,1878.4,1878.3,7.3747261]
[1743186647291,5.93432992,1878.4,1878.3,7.32149145]
[1743186649485,5.93432992,1878.4,1878.3,6.24596223]
[1743186650366,5.93432992,1878.4,1878.3,0.10720223]
[1743186651864,5.93432992,1878.4,1878.1,6.113]
[1743186652102,5.93432992,1878.4,1878.3,0.10404123]
[1743186652600,5.93432992,1878.4,1878.1,6.113]
[1743186652808,5.93432992,1878.4,1878.2,0.10404123]
[1743186653103,5.93432992,1878.4,1878.1,6.113]
[1743186653306,5.93432992,1878.4,1878.3,0.10404123]
[1743186653501,5.93432992,1878.4,1878.1,6.113]
[1743186653700,5.93432992,1878.4,1878.3,0.10404123]
[1743186653881,5.93432992,1878.4,1878.1,6.113]
[1743186654086,11.25799992,1878.4,1878.3,0.10404123]
[1743186654399,5.93432992,1878.4,1878.3,0.10404123]
[1743186654603,5.93432992,1878.4,1878.1,6.113]
[1743186654775,5.93432992,1878.4,1878.2,0.10239723]
[1743186655003,5.93432992,1878.4,1878.1,6.113]
[1743186655212,5.93432992,1878.4,1878.2,0.10239723]
[1743186655409,5.93432992,1878.4,1878.1,6.113]
[1743186655739,5.93432992,1878.4,1878.2,5.22839723]
[1743186655939,5.93432992,1878.4,1878.2,10.55259723]
[1743186656141,5.93432992,1878.4,1878.2,25.05259723]
[1743186657033,5.93432992,1878.4,1878.2,19.72839723]
[1743186658242,6.32599698,1878.4,1878.2,19.72839723]
[1743186659427,5.93432992,1878.4,1878.2,19.72839723]
[1743186659729,5.93432992,1878.4,1878.2,25.05259723]
[1743186659929,5.93432992,1878.4,1878.3,5.32396]
[1743186660229,5.93432992,1878.4,1878.3,6.2007904]
[1743186660731,5.93432992,1878.4,1878.3,20.7007904]
[1743186662837,9.14379105,1878.9,1878.5,5.32329]
[1743186663040,10.51753097,1878.8,1878.6,5.126]
[1743186663332,6.69602992,1878.8,1878.6,10.55280464]
[1743186663509,5.93432992,1878.8,1878.6,10.55280464]
[1743186664109,5.93432992,1878.8,1878.6,5.22972464]
[1743186664525,11.25697992,1878.8,1878.6,5.22972464]
[1743186664726,5.93432992,1878.8,1878.6,5.22972464]
[1743186664938,5.93432992,1878.8,1878.6,10.55278464]
[1743186665136,3.0,1879.1,1878.9,5.32206]
[1743186665432,3.0,1879.1,1879.0,5.125]
[1743186665608,3.0,1879.1,1879.0,5.22448962]
[1743186665811,3.0,1879.1,1879.0,5.125]
[1743186666239,13.30020507,1879.1,1879.0,5.125]
[1743186668433,8.32237,1878.9,1878.7,5.125]